Cogmind - Beta 12 *** ADVENTURER MODE // 2023.08.06 @ 05:08:16 Player: Rudolf Result: Destroyed by G-73 Enforcer with Heavy Laser Performance ------------- Evolutions (9) 4500 Regions Visited (12) 2400 Robots Destroyed (24) 120 Value Destroyed (578) 578 Prototype IDs (34) 680 Alien Tech Used (0) 0 Bonus (362) 362 TOTAL SCORE: 8640 Bonus ------- High Alert Combat Kills 22 Follower Combat Kills 40 Aligned with FarCom 300 Cogmind --------- Core Integrity 0/1600 Matter 55/300 Energy 84/100 System Corruption 0% Temperature Cool (36) Movement Core (50) Location -1/Access Parts ------- > --- POWER (2) -------- (None) > --- PROPULSION (7) --- (None) > --- UTILITY (12) ----- (None) > --- WEAPON (4) ------- (None) > --- INVENTORY (5) ---- Terrain Scan Processor Welding Torch Peak State ------------ > --- POWER ------------ F-cell Engine > --- PROPULSION ------- Nuclear Pulse Array Advanced Surge Thruster Advanced Surge Thruster Advanced Surge Thruster Advanced Surge Thruster > --- UTILITY ---------- Advanced Weight Redist. System Advanced Quantum Shading Machine Advanced Visual Processing Unit Improved Signal Interpreter Improved Signal Interpreter Advanced Targeting Computer Reaction Control System Hacking Suite Trap Reconfigurator > --- WEAPON ----------- Variable Charge Gun Gauss Cannon Improved Remote Datajack > --- INVENTORY -------- Flight Unit Surge Thruster Field Propulsion Drive Cooled Nuclear Pulse Thruster Advanced Targeting Computer [Rating: 104] Favorites ----------- Power Light Ion Engine Engine Light Ion Engine Power Core Nuclear Core Reactor Particle Reactor Propulsion Aluminum Leg Treads Light Treads Leg Aluminum Leg Wheel Wheel Hover Unit Aerolev Unit Flight Unit Advanced Surge Thruster Utility Improved Signal Interpreter Device Terrain Scanner Storage Small Storage Unit Processor Improved Signal Interpreter Hackware Hacking Suite Protection Medium Armor Plating Weapon Light Assault Rifle Energy Gun Medium Laser Energy Cannon Particle Cannon Ballistic Gun Light Assault Rifle Ballistic Cannon Gauss Cannon Special Weapon Improved Remote Datajack Piercing Weapon Force Lance Special Melee Weapon Datajack Build | -11 -10 -10 -10 -9 -8 -7 -6 -5 -4 -3 -2 -1 ------- Run | Jun Mat Min Exi Min Mat Fac Fac Fac Fac Res Res Acc Slots Evolved 18 | . . . . . 4 2 2 2 2 2 2 2 Power 1 | . . . . . . . . . . . 1 . Propulsion 5 | . . . . . 2 . 1 1 . 1 . . Utility 10 | . . . . . 2 1 1 1 2 1 1 1 Weapon 2 | . . . . . . 1 . . . . . 1 Parts Attached 112 | 6 1 1 4 1 36 10 9 10 8 10 6 10 Power 14 | 1 . . . 1 3 1 3 . . 2 1 2 Engine 5 | 1 . . . 1 1 . 2 . . . . . Core 5 | . . . . . 2 1 1 . . . . 1 Reactor 4 | . . . . . . . . . . 2 1 1 Propulsion 37 | 2 . 1 1 . 13 . 3 4 4 5 2 2 Treads 2 | 2 . . . . . . . . . . . . Leg 6 | . . 1 1 . 4 . . . . . . . Wheel 1 | . . . . . . . . . . . . 1 Hover 2 | . . . . . 1 . . . . . . 1 Flight 26 | . . . . . 8 . 3 4 4 5 2 . Utility 40 | 1 1 . 2 . 14 7 1 3 4 2 3 2 Device 29 | . 1 . 2 . 7 7 . 2 4 2 3 1 Storage 1 | 1 . . . . . . . . . . . . Processor 6 | . . . . . 4 . . 1 . . . 1 Hackware 1 | . . . . . . . 1 . . . . . Protection 3 | . . . . . 3 . . . . . . . Artifact . | . . . . . . . . . . . . . Weapon 21 | 2 . . 1 . 6 2 2 3 . 1 . 4 Energy Gun 7 | 1 . . 1 . 2 1 . 1 . 1 . . Energy Cannon 4 | . . . . . . 1 . . . . . 3 Ballistic Gun 6 | 1 . . . . 4 . 1 . . . . . Ballistic Cannon 1 | . . . . . . . 1 . . . . . Launcher . | . . . . . . . . . . . . . Special Weapon 1 | . . . . . . . . 1 . . . . Impact Weapon . | . . . . . . . . . . . . . Slashing Weapon . | . . . . . . . . . . . . . Piercing Weapon 1 | . . . . . . . . . . . . 1 Special Melee Weapon 1 | . . . . . . . . 1 . . . . Unidentified Prototypes 10 | . . . 1 . 1 . 2 1 1 2 1 1 Parts Lost 22 | . . . . . 1 . . . 3 7 8 3 Power . | . . . . . . . . . . . . . Propulsion 12 | . . . . . . . . . 1 5 5 1 Utility 9 | . . . . . 1 . . . 2 2 2 2 Weapon 1 | . . . . . . . . . . . 1 . Highest Loss Streak 8 | . . . . . 1 . . . 2 4 8 2 To Critical Strikes . | . . . . . . . . . . . . . Average Slot Usage (%) 87 | . 95 86 95 100 90 98 94 97 88 64 57 18 Engine 7 | . 14 14 14 14 2 . 5 5 5 1 . . Core 1 | . . . . . 6 7 . . . . . . Treads 1 | . 26 14 . . . . . . . . . . Leg 12 | . . 8 27 28 16 . . . . . . . Flight 12 | . . . . . 16 30 30 33 25 21 20 . Device 13 | . 10 14 13 14 16 14 13 11 14 15 11 2 Storage 6 | . 14 14 14 14 4 . . . . . . . Processor 8 | . . . . . 6 23 20 22 21 14 13 12 Hackware 1 | . . . . . . . 6 5 5 4 3 . Energy Gun 7 | . 14 6 9 14 10 12 6 5 5 . 3 . Ballistic Gun 7 | . 14 14 14 14 7 7 6 . . . . . Ballistic Cannon 1 | . . . . . . . 2 5 5 2 . . Naked Turns 5 | . . . . . . . . . . . . 5 Heaviest Build 33 | 11 12 12 12 14 29 18 26 29 30 33 26 12 Greatest Support 52 | 40 40 20 20 20 52 20 28 35 38 43 35 12 Greatest Overweight (x) 4 | . . . . . . . . . . . 4 3 Average Overweight (x) . | . . . . . . . . . . . . . Largest Inventory Capacity 8 | 8 8 8 8 8 8 5 5 5 5 5 5 5 Average Capacity 6 | 6 8 8 8 8 6 5 5 5 5 5 5 5 Most Carried 8 | 5 3 5 6 8 8 5 5 5 5 5 5 5 Average Carried 4 | 2 2 4 4 7 6 4 4 4 4 4 3 4 Final Capacity 8 | 8 8 8 8 8 5 5 5 5 5 5 5 5 Final Carried 8 | 2 3 5 5 8 5 5 5 5 5 5 4 2 Class Distribution -------------------- 43% | Mutant 27% | Hacker-Sprinter 12% | Skirmisher 10% | Scavenger-Sprinter 3% | Hacker-Mutant Dominant Class ---------------- Mutant | -10/Materials Mutant | -10/Mines Mutant | -10/Exiles Skirmisher | -9/Mines Mutant | -8/Materials Scavenger-Sprinter | -7/Factory Scavenger-Sprinter | -6/Factory Hacker-Sprinter | -5/Factory Hacker-Sprinter | -4/Factory Hacker-Sprinter | -3/Research Hacker-Sprinter | -2/Research Mutant | -1/Access Resources | -11 -10 -10 -10 -9 -8 -7 -6 -5 -4 -3 -2 -1 ----------- Run | Jun Mat Min Exi Min Mat Fac Fac Fac Fac Res Res Acc Matter Collected 1117 | 198 30 38 . 91 298 106 . 142 1 81 30 102 Remotely . | . . . . . . . . . . . . . Salvage Created 755 | . . . . 288 292 . . 32 . 54 30 59 Parts 47 | . . . . 13 19 . . 1 . 5 2 7 Haulers Intercepted . | . . . . . . . . . . . . . Recyclers Shooed 1 | . . . . 1 . . . . . . . . Parts Field Recycled . | . . . . . . . . . . . . . Retrieved Matter . | . . . . . . . . . . . . . Parts Self-Destructed . | . . . . . . . . . . . . . Prevented . | . . . . . . . . . . . . . Kills | -11 -10 -10 -10 -9 -8 -7 -6 -5 -4 -3 -2 -1 ------- Run | Jun Mat Min Exi Min Mat Fac Fac Fac Fac Res Res Acc Combat Hostiles Destroyed 17 | . . . . 9 6 . . . . 1 . 1 Guns 15 | . . . . 9 5 . . . . 1 . . Cannons 1 | . . . . . . . . . . . . 1 AOE 1 | . . . . . 1 . . . . . . . Classes Destroyed 11 | . . . . 3 5 . . . . 2 1 . Worker 1 | . . . . . . . . . . 1 . . Builder 2 | . . . . . . . . . . . 1 1 Tunneler 1 | . . . . . 1 . . . . . . . Recycler 1 | . . . . . 1 . . . . . . . Watcher 2 | . . . . . 1 . . 1 . . . . Swarmer 7 | . . . . 4 3 . . . . . . . Cutter 2 | . . . . . . . . . . 1 . 1 Grunt 5 | . . . . 4 1 . . . . . . . Brawler 1 | . . . . 1 . . . . . . . . Sentry 1 | . . . . . 1 . . . . . . . Hunter 1 | . . . . . 1 . . . . . . . Best Kill Streak 3 | . . . . 3 3 . . 1 . 1 1 1 Combat Bots Only 3 | . . . . 3 3 . . . . 1 . 1 Max Kills in Single Turn 2 | . . . . 1 2 . . 1 . 1 1 1 Gunslinging . | . . . . . . . . . . . . . Exploded 1 | . . . . . 1 . . . . . . . Melee . | . . . . . . . . . . . . . Uniques/NPCs Destroyed . | . . . . . . . . . . . . . Combat | -11 -10 -10 -10 -9 -8 -7 -6 -5 -4 -3 -2 -1 -------- Run | Jun Mat Min Exi Min Mat Fac Fac Fac Fac Res Res Acc Damage Taken 4882 | . . . . 267 384 4 . . 776 963 636 1852 Core 2214 | . . . . 78 24 . . . 61 253 194 1604 Absorbed by Shields . | . . . . . . . . . . . . . Regen/Repaired (Parts) 34 | . . . . . . . 34 . . . . . Core Remaining (%) 91 | 100 . . . 68 95 100 100 100 94 80 86 . Volleys Fired 81 | . . . . 31 28 . . 2 4 3 11 2 Largest 3 | . . . . 2 2 . . 3 2 1 1 1 Hottest 138 | . . . . 70 115 . . 138 123 65 65 113 Shots Fired 144 | . . . . 62 56 . . 5 5 3 11 2 Gun 134 | . . . . 62 56 . . 3 1 1 11 . Cannon 7 | . . . . . . . . 2 1 2 . 2 Launcher . | . . . . . . . . . . . . . Special 3 | . . . . . . . . . 3 . . . Kinetic 56 | . . . . 31 18 . . 4 1 2 . . Thermal 63 | . . . . 31 28 . . 1 1 . . 2 Explosive . | . . . . . . . . . . . . . Electromagnetic 22 | . . . . . 10 . . . . 1 11 . Robot Hit Streak 24 | . . . . 16 11 . . 14 19 22 24 7 Robot Miss Streak 4 | . . . . 1 4 . . . . . 1 . Penetration Max . | . . . . . . . . . . . . . Secondary Targets 1 | . . . . 1 . . . . . . . . Max Gunslinging Chain 1 | . . . . 1 . . . . . . . . Shots Hit Robots 116 | . . . . 49 43 . . 4 5 3 9 3 Core Hits 41 | . . . . 17 16 . . 1 1 3 1 2 Critical Kills 1 | . . . . . . . . 1 . . . . Critical Parts Destroyed . | . . . . . . . . . . . . . Critical Strikes 8 | . . . . 1 4 . . 1 1 1 . . Burn 5 | . . . . 1 4 . . . . . . . Destroy 1 | . . . . . . . . 1 . . . . Blast 2 | . . . . . . . . . 1 1 . . Melee Attacks 1 | . . . . . . . . . . . . 1 Impact . | . . . . . . . . . . . . . Slashing . | . . . . . . . . . . . . . Piercing 1 | . . . . . . . . . . . . 1 Sneak Attacks 1 | . . . . . . . . . . . . 1 Combat Hostiles . | . . . . . . . . . . . . . Follow-up Attacks . | . . . . . . . . . . . . . Damage Inflicted 1786 | . . 6 . 482 782 . . 75 44 71 137 189 Guns 1435 | . . . . 482 739 . . 48 15 14 137 . Cannons 194 | . . . . . . . . 27 29 57 . 81 Explosions 43 | . . . . . 43 . . . . . . . Melee 108 | . . . . . . . . . . . . 108 Ramming 6 | . . 6 . . . . . . . . . . Kinetic 582 | . . . . 203 234 . . 59 29 57 . . Thermal 818 | . . . . 279 427 . . 16 15 . . 81 Explosive . | . . . . . . . . . . . . . Electromagnetic 272 | . . . . . 121 . . . . 14 137 . Impact . | . . . . . . . . . . . . . Slashing . | . . . . . . . . . . . . . Piercing 108 | . . . . . . . . . . . . 108 Highest Corruption 6 | . . . . . . . . . 4 6 5 . Average Corruption 4 | . . . . . . . . . 2 4 5 . Corruption Purged . | . . . . . . . . . . . . . Corruption Blocked . | . . . . . . . . . . . . . Effects 14 | . . . . . . . . . 1 9 4 . Message Errors 4 | . . . . . . . . . . 4 . . Matter Fused 1 | . . . . . . . . . . . 1 . Heat Flow Errors 3 | . . . . . . . . . . 3 . . Energy Discharges 2 | . . . . . . . . . . . 2 . Parts Rejected 1 | . . . . . . . . . 1 . . . Data Loss (minor) 1 | . . . . . . . . . . . 1 . Data Loss (major) 2 | . . . . . . . . . . 2 . . Overload Shots . | . . . . . . . . . . . . . Overflow Damage . | . . . . . . . . . . . . . Projectiles . | . . . . . . . . . . . . . Explosions . | . . . . . . . . . . . . . Melee . | . . . . . . . . . . . . . Knockbacks 2 | . . . . . . . . . 1 1 . . Impact . | . . . . . . . . . . . . . Kinetic 2 | . . . . . . . . . 1 1 . . Secondary . | . . . . . . . . . . . . . Self-Inflicted Damage . | . . . . . . . . . . . . . Shots . | . . . . . . . . . . . . . Rammed 1 | . . 1 . . . . . . . . . . Targets Rammed 1 | . . 1 . . . . . . . . . . Kicked . | . . . . . . . . . . . . . Crushed . | . . . . . . . . . . . . . Highest Temperature 348 | . . . . 148 348 . . 48 33 247 26 17 Average Temperature 85 | . . . . 52 128 . . 23 15 83 12 8 Received Heat Transfer 894 | . . . . 93 153 . . . 57 240 45 306 Effects 2 | . . . . . 1 . . . . 1 . . Energy Bleed 1 | . . . . . . . . . . 1 . . Damage (minor) 1 | . . . . . 1 . . . . . . . Siege Activations . | . . . . . . . . . . . . . Robots Corrupted . | . . . . . . . . . . . . . Combat Hostiles . | . . . . . . . . . . . . . Parts Fried 1 | . . . . . . . . . . . 1 . Impact Corruptions . | . . . . . . . . . . . . . Robots Melted . | . . . . . . . . . . . . . Combat Hostiles . | . . . . . . . . . . . . . Parts Melted . | . . . . . . . . . . . . . Heat Transferred 2233 | . . . . 888 1197 . . 37 37 . . 74 Parts Sabotaged . | . . . . . . . . . . . . . Parts Stolen . | . . . . . . . . . . . . . Parts Stripped . | . . . . . . . . . . . . . Power Chain Reactions 1 | . . . . . 1 . . . . . . . Missiles Intercepted . | . . . . . . . . . . . . . Alert | -11 -10 -10 -10 -9 -8 -7 -6 -5 -4 -3 -2 -1 ------- Run | Jun Mat Min Exi Min Mat Fac Fac Fac Fac Res Res Acc Peak Influence 767 | . . . . 190 303 148 63 90 203 595 767 411 Initial 386 | . . . . . 16 117 62 26 37 91 247 386 Average 145 | . . . . 103 102 121 62 59 65 293 509 394 Maximum Alert Level 3 | . . . . . 1 . . . 1 2 3 2 Low Security (%) 76 | 100 100 100 . 100 78 100 100 100 99 30 . . Level 1 14 | . . . . . 21 . . . . 46 33 58 Level 2 7 | . . . . . . . . . . 23 40 41 Level 3 1 | . . . . . . . . . . . 26 . Level 4 . | . . . . . . . . . . . . . Level 5 . | . . . . . . . . . . . . . High Security . | . . . . . . . . . . . . . Max Security . | . . . . . . . . . . . . . Squads Dispatched 28 | . . . . . 5 . . . 6 10 5 2 Investigation 19 | . . . . . 3 . . . 4 9 2 1 Extermination 1 | . . . . . . . . . 1 . . . Reinforcement 8 | . . . . . 2 . . . 1 1 3 1 Assault . | . . . . . . . . . . . . . Garrison . | . . . . . . . . . . . . . Intercept . | . . . . . . . . . . . . . Searches Triggered 1 | . . . . . . . . . . 1 . . Construction Impeded . | . . . . . . . . . . . . . Haulers Reinforced . | . . . . . . . . . . . . . Active Scanning Responses . | . . . . . . . . . . . . . Cargo Convoy Interrupts . | . . . . . . . . . . . . . Stealth | -11 -10 -10 -10 -9 -8 -7 -6 -5 -4 -3 -2 -1 --------- Run | Jun Mat Min Exi Min Mat Fac Fac Fac Fac Res Res Acc Distress Signals 11 | . 1 . . . . . . . 1 3 6 . Communications Jammed . | . . . . . . . . . . . . . Distress Signals . | . . . . . . . . . . . . . Times Spotted 174 | . . 1 . 10 19 4 . 1 35 47 40 17 Peak Tracking Total 25 | . 2 1 . 3 13 4 . 1 25 16 18 17 Tactical Retreats 24 | . . . . 1 4 . . . 3 10 6 . Traps | -11 -10 -10 -10 -9 -8 -7 -6 -5 -4 -3 -2 -1 ------- Run | Jun Mat Min Exi Min Mat Fac Fac Fac Fac Res Res Acc Traps Triggered 5 | . . . . . 1 1 . . . 1 1 1 Indirectly . | . . . . . . . . . . . . . Trap Hack Attempts . | . . . . . . . . . . . . . Triggered . | . . . . . . . . . . . . . Disarmed . | . . . . . . . . . . . . . Reprogrammed . | . . . . . . . . . . . . . Reused 1 | . . . . . . . . . . . 1 . Traps Reconfigurated 6 | . . . . . 1 . . . . 1 4 . Traps Extracted . | . . . . . . . . . . . . . Installed . | . . . . . . . . . . . . . Triggered 1 | . . . . . . . . . . . 1 . Machines | -11 -10 -10 -10 -9 -8 -7 -6 -5 -4 -3 -2 -1 ---------- Run | Jun Mat Min Exi Min Mat Fac Fac Fac Fac Res Res Acc Machines Disabled 1 | . . . . . 1 . . . . . . . Max in Single Turn 1 | . . . . . 1 . . . . . . . Machines Repaired . | . . . . . . . . . . . . . Machines Sabotaged . | . . . . . . . . . . . . . Overloaded Fab Kills . | . . . . . . . . . . . . . Hacking | -11 -10 -10 -10 -9 -8 -7 -6 -5 -4 -3 -2 -1 --------- Run | Jun Mat Min Exi Min Mat Fac Fac Fac Fac Res Res Acc Machines Accessed 42 | . 1 . 5 . 8 1 2 4 6 12 3 . Terminals 27 | . 1 . . . 7 1 1 2 5 8 2 . Fabricators 1 | . . . . . . . . 1 . . . . Repair Stations 1 | . . . . . . . 1 . . . . . Recycling Units 4 | . . . . . . . . . 1 3 . . Scanalyzers 4 | . . . . . 1 . . 1 . 1 1 . Garrison Access . | . . . . . . . . . . . . . Total Hacks 174 | . 1 . 50 . 36 3 5 8 18 47 6 . Successful 119 | . 1 . 50 . 23 1 4 4 8 24 4 . Failed 55 | . . . . . 13 2 1 4 10 23 2 . Catastrophic 11 | . . . . . 1 1 . 1 2 5 1 . Database Lockouts . | . . . . . . . . . . . . . Manual 23 | . . . 1 . 2 2 1 1 2 12 2 . Terminals 96 | . 1 . . . 32 3 1 6 15 35 3 . Fabricators 1 | . . . . . . . . 1 . . . . Repair Stations 4 | . . . . . . . 4 . . . . . Recycling Units 12 | . . . . . . . . . 3 9 . . Scanalyzers 11 | . . . . . 4 . . 1 . 3 3 . Garrison Access . | . . . . . . . . . . . . . Terminal Hacks 98 | . 1 . 50 . 20 1 . 4 5 15 2 . Record 68 | . . . 49 . 4 . . . 2 12 1 . Robot Analysis 3 | . . . . . . . . 1 2 . . . Prototype ID Bank 1 | . . . . . 1 . . . . . . . Level Access Points 2 | . . . . . . . . . . 1 1 . Alert Level 7 | . 1 . . . 3 . . 1 1 1 . . Locate Traps 2 | . . . . . . 1 . 1 . . . . Dispatch Records 2 | . . . . . 2 . . . . . . . Maintenance Status 1 | . . . . . 1 . . . . . . . Security Status 1 | . . . . . 1 . . . . . . . Patrol Status 1 | . . . . . 1 . . . . . . . Transport Status 1 | . . . . . 1 . . . . . . . Investigation Status 1 | . . . . . 1 . . . . . . . Recall Investigation 2 | . . . . . 2 . . . . . . . Hauler Manifests 1 | . . . . . 1 . . . . . . . Zone Layout 4 | . . . . . 2 . . 1 . 1 . . EX-Prototype ID Bank 1 | . . . 1 . . . . . . . . . Fabricator Hacks . | . . . . . . . . . . . . . Repair Station Hacks 4 | . . . . . . . 4 . . . . . Scan Component 2 | . . . . . . . 2 . . . . . Repair 2 | . . . . . . . 2 . . . . . Recycling Unit Hacks 9 | . . . . . . . . . 3 6 . . Recycle Component 1 | . . . . . . . . . . 1 . . Process 2 | . . . . . . . . . 1 1 . . Report Inventory 2 | . . . . . . . . . 1 1 . . Retrieve Matter 4 | . . . . . . . . . 1 3 . . Scanalyzer 8 | . . . . . 3 . . . . 3 2 . Insert Component 4 | . . . . . 2 . . . . 1 1 . Analyze 4 | . . . . . 1 . . . . 2 1 . Garrison Access Hacks . | . . . . . . . . . . . . . Unauthorized Hacks . | . . . . . . . . . . . . . Terminals . | . . . . . . . . . . . . . Fabricators . | . . . . . . . . . . . . . Repair Stations . | . . . . . . . . . . . . . Recycling Units . | . . . . . . . . . . . . . Scanalyzers . | . . . . . . . . . . . . . Garrison Access . | . . . . . . . . . . . . . Data Cores Recovered . | . . . . . . . . . . . . . Used . | . . . . . . . . . . . . . Hacking Detections 29 | . . . . . 6 . 1 4 5 11 2 . Full Trace Events 17 | . . . . . 4 . . . 4 8 1 . Feedback Events 2 | . . . . . . . . . . 2 . . Corruption 2 | . . . . . . . . . . 2 . . Feedback Blocked . | . . . . . . . . . . . . . Robot Schematics Acquired . | . . . . . . . . . . . . . Robots Built . | . . . . . . . . . . . . . Authchips . | . . . . . . . . . . . . . Time . | . . . . . . . . . . . . . Total Robot Build Rating . | . . . . . . . . . . . . . Part Schematics Acquired 3 | . . . . . 1 . . . . 1 1 . Parts Built . | . . . . . . . . . . . . . Authchips . | . . . . . . . . . . . . . Time . | . . . . . . . . . . . . . Total Part Build Rating . | . . . . . . . . . . . . . Parts Repaired 2 | . . . . . . . 2 . . . . . Time 52 | . . . . . . . 52 . . . . . Parts Recycled 1 | . . . . . . . . . . 1 . . Recycled Matter 13 | . . . . . . . . . 5 8 . . Retrieved Matter 13 | . . . . . . . . . 5 8 . . Retrieved Components . | . . . . . . . . . . . . . Parts Scanalyzed 3 | . . . . . 1 . . . . 1 1 . Part Schematics Acquired 3 | . . . . . 1 . . . . 1 1 . Parts Damaged . | . . . . . . . . . . . . . Bothacking | -11 -10 -10 -10 -9 -8 -7 -6 -5 -4 -3 -2 -1 ------------ Run | Jun Mat Min Exi Min Mat Fac Fac Fac Fac Res Res Acc Used RIF Installer . | . . . . . . . . . . . . . Robots Hacked 2 | . . . . . . . . . 2 . . . Non-combat 2 | . . . . . . . . . 2 . . . Combat . | . . . . . . . . . . . . . Robot Hacks Applied 2 | . . . . . . . . . 2 . . . parse_system 1 | . . . . . . . . . 1 . . . check_alert 1 | . . . . . . . . . 1 . . . Relay Couplers Released . | . . . . . . . . . . . . . Fabnet Peak Effective % . | . . . . . . . . . . . . . Robots Rewired . | . . . . . . . . . . . . . Allies Hacked . | . . . . . . . . . . . . . Hacks Repelled . | . . . . . . . . . . . . . Allies | -11 -10 -10 -10 -9 -8 -7 -6 -5 -4 -3 -2 -1 -------- Run | Jun Mat Min Exi Min Mat Fac Fac Fac Fac Res Res Acc Total Allies 3 | . . . . . . 3 . . . . . . Largest Group 3 | . . . . . . 3 . . . . . . Highest-Rated Group 93 | . . . . . . 93 . . . . . . Highest-Rated Ally 31 | . . . . . . 31 . . . . . . Total Orders . | . . . . . . . . . . . . . Ally Attacks 14 | . . . . . . 14 . . . . . . Total Damage 212 | . . . . . . 212 . . . . . . Kills 1 | . . . . . . 1 . . . . . . Allies Corrupted . | . . . . . . . . . . . . . Allies Melted . | . . . . . . . . . . . . . Intel | -11 -10 -10 -10 -9 -8 -7 -6 -5 -4 -3 -2 -1 ------- Run | Jun Mat Min Exi Min Mat Fac Fac Fac Fac Res Res Acc Robot Analysis Total 3 | . . . . . . . . 1 2 . . . Derelict Logs Recovered 2 | . . 1 . 1 . . . . . . . . Drone Launches 2 | . . . . . . . . . . 2 . . Drone Recoveries . | . . . . . . . . . . . . . Exploration | -11 -10 -10 -10 -9 -8 -7 -6 -5 -4 -3 -2 -1 ------------- Run | Jun Mat Min Exi Min Mat Fac Fac Fac Fac Res Res Acc Turns Passed 4705 | 75 176 136 1305 480 546 185 166 276 549 439 243 129 Spaces Moved 7079 | 42 109 98 1080 313 638 497 212 771 1114 1241 797 167 Core 119 | 5 . . . . . . . . . . 2 112 Treads 180 | 37 109 34 . . . . . . . . . . Legs 1609 | . . 64 1080 313 152 . . . . . . . Wheels 34 | . . . . . . . . . . . . 34 Hover 21 | . . . . . . . . . . . . 21 Flight 5116 | . . . . . 486 497 212 771 1114 1241 795 . Fastest Speed 16 | 50 160 120 120 120 29 32 27 26 16 21 24 50 Average Speed 53 | 146 160 133 120 120 54 32 27 27 24 30 25 59 Slowest Speed 250 | 160 160 160 120 120 120 32 32 28 28 34 250 200 Overloaded Moves . | . . . . . . . . . . . . . Propulsion Burnouts . | . . . . . . . . . . . . . Robots Hopped 89 | . . . . . 3 10 . 3 28 27 18 . Cave-ins Triggered . | . . . . . . . . . . . . . Exploration Rate (%) 32 | 4 16 42 94 54 51 18 7 20 33 42 29 6 Regions Visited 12 Branch Regions 3 Pre-discovered Areas 3 | . . . 1 2 . . . . . . . . Known Exits Taken 7 | . . . . . 1 1 1 1 1 1 1 . Unknown Exits Taken 5 | 1 1 1 1 1 . . . . . . . . Scrap Searched 1 | . . . . 1 . . . . . . . . Spaces Dug . | . . . . . . . . . . . . . Terrain Destroyed 5 | . . . . . 5 . . . . . . . Melee . | . . . . . . . . . . . . . Projectile . | . . . . . . . . . . . . . AOE 5 | . . . . . 5 . . . . . . . Terrain Rammed . | . . . . . . . . . . . . . Walls Destroyed . | . . . . . . . . . . . . . Machines Disabled . | . . . . . . . . . . . . . Actions | -11 -10 -10 -10 -9 -8 -7 -6 -5 -4 -3 -2 -1 --------- Run | Jun Mat Min Exi Min Mat Fac Fac Fac Fac Res Res Acc Total 7805 | 55 111 102 1090 363 780 513 317 827 1359 1280 814 194 Wait 462 | . . . . 8 40 4 89 28 251 31 8 3 Move 6893 | 41 108 97 1079 312 631 477 211 764 1058 1188 760 167 Hop 84 | . . . . . 3 9 . 3 27 25 17 . Pick Up 78 | 8 1 2 3 7 12 3 3 8 5 14 5 7 Fast Attach 36 | . . . . . 14 7 6 5 3 . . 1 Attach 56 | 6 1 1 3 . 9 3 3 5 1 9 6 9 Detach 13 | . 1 1 2 . 4 2 . . . 1 1 1 Swap 20 | . . . 1 1 13 . . . 4 1 . . Drop 79 | . . . 2 4 26 8 5 12 6 8 5 3 Fire 81 | . . . . 31 28 . . 2 4 3 11 2 Melee 1 | . . . . . . . . . . . . 1 Ram . | . . . . . . . . . . . . . Kick . | . . . . . . . . . . . . . Crush 1 | . . 1 . . . . . . . . . . Escape Stasis 1 | . . . . . . . . . . . 1 . Rewire . | . . . . . . . . . . . . . Trap . | . . . . . . . . . . . . . Miscellaneous . | . . . . . . . . . . . . . Route ------- -11/Junkyard -10/Materials -10/Mines -10/Exiles (discovered 2 exits: [*Min x2]) -9/Mines -8/Materials (discovered 2 exits: *Fac / [Sto]) -7/Factory -6/Factory -5/Factory (discovered 2 exits: *Fac / *Upp) -4/Factory -3/Research (discovered 4 exits: *Res x3 / *Arm) -2/Research (discovered 4 exits: *Acc x3 / *Qua) -1/Access History --------- Turn | Location | Event 52 | -11/Junkyard | Discovered new exit (range 16) 76 | -11/Junkyard | Entered Materials 76 | -10/Materials | Discovered new exit (range 16) 173 | -10/Materials | Met 8R-AWN 252 | -10/Materials | Entered Mines 254 | -10/Mines | Followed 8R-AWN into the Mines 292 | -10/Mines | Learned Materials stockpile data 331 | -10/Mines | Build established: Mutant 383 | -10/Mines | Discovered new exit (range 5) 388 | -10/Mines | Entered Exiles 431 | -10/Exiles | Welcomed by 8R-AWN 457 | -10/Exiles | Met EX-HEX 481 | -10/Exiles | Learned about 8R-AWN's background 542 | -10/Exiles | Met EX-DEC 584 | -10/Exiles | Met EX-BIN 743 | -10/Exiles | Discovered new exit (range 10) 835 | -10/Exiles | Visited The Gauntlet 1037 | -10/Exiles | Discovered new exit (range 14) 1252 | -10/Exiles | Learned location of Zion (-7) 1449 | -10/Exiles | Aligned with FarCom system 1450 | -10/Exiles | Given EX-Vault access code 1479 | -10/Exiles | Opened EX-Vault 1484 | -10/Exiles | Found Prototype Device 1485 | -10/Exiles | Identified Trap Reconfigurator 1514 | -10/Exiles | Warned to stay clear of 0b10 Research branches 1693 | -10/Exiles | Left Exiles lab with Trap Reconfigurator 1693 | -10/Exiles | Entered Mines 1694 | -9/Mines | Learned location of Storage (-8) 1803 | -9/Mines | Discovered new exit (range 11) 1982 | -9/Mines | Build established: Skirmisher 2173 | -9/Mines | Entered Materials 2173 | -8/Materials | Evolved 4 slots: Propulsion x2, Utility x2 2595 | -8/Materials | Discovered new exit (range 17) 2639 | -8/Materials | Discovered new exit (range 16) 2714 | -8/Materials | Identified exit to Factory 2719 | -8/Materials | Entered Factory 2719 | -7/Factory | Evolved 2 slots: Utility x1, Weapon x1 2837 | -7/Factory | Allied Derelicts emerged from ambush trap array 2899 | -7/Factory | Discovered new exit (range 15) 2903 | -7/Factory | Identified exit to Factory 2904 | -7/Factory | Entered another Factory area 2904 | -6/Factory | Evolved 2 slots: Propulsion x1, Utility x1 2952 | -6/Factory | Repaired Flight Unit 2979 | -6/Factory | Repaired Flight Unit 3067 | -6/Factory | Discovered new exit (range 13) 3070 | -6/Factory | Identified exit to Factory 3070 | -6/Factory | Entered another Factory area 3070 | -5/Factory | Evolved 2 slots: Propulsion x1, Utility x1 3334 | -5/Factory | Discovered new exit (range 8) 3335 | -5/Factory | Discovered new exit (range 9) 3336 | -5/Factory | Identified exit to Factory 3338 | -5/Factory | Identified exit to Upper Caves 3346 | -5/Factory | Entered another Factory area 3346 | -4/Factory | Evolved 2 slots: Utility x2 3472 | -4/Factory | Build established: Hacker-Sprinter 3872 | -4/Factory | Spotted B-86 Titan 3890 | -4/Factory | Discovered new exit (range 16) 3894 | -4/Factory | Identified exit to Research 3895 | -4/Factory | Entered Research 3895 | -3/Research | Evolved 2 slots: Propulsion x1, Utility x1 4068 | -3/Research | Spotted B-86 Titan 4145 | -3/Research | Search patrols dispatched 4155 | -3/Research | Discovered new exit (range 9) 4159 | -3/Research | Identified exit to Armory 4256 | -3/Research | Lost 4 parts (2n2u) 4284 | -3/Research | Spotted B-86 Titan 4304 | -3/Research | Identified exit to Research 4334 | -3/Research | Entered another Research area 4334 | -2/Research | Evolved 2 slots: Power x1, Utility x1 4354 | -2/Research | Spotted B-90 Cyclops 4372 | -2/Research | Found Prototype Device 4445 | -2/Research | Identified Beam Splitter 4468 | -2/Research | Spotted B-90 Cyclops 4484 | -2/Research | Spotted B-90 Cyclops 4528 | -2/Research | Discovered new exit (range 20) 4533 | -2/Research | Identified exit to Quarantine 4547 | -2/Research | Identified exit to Access 4577 | -2/Research | Entered Access 4577 | -1/Access | Evolved 2 slots: Utility x1, Weapon x1 4585 | -1/Access | Found Prototype Processor 4605 | -1/Access | Lost 8 parts (5n2u1w) 4644 | -1/Access | Identified Exp. Signal Interpreter 4686 | -1/Access | Core integrity fell below 50% 4704 | -1/Access | Core integrity fell below 20% 4706 | -1/Access | Destroyed by G-73 Enforcer with Heavy Laser Last Messages --------------- 04683_ Imp. Antigrav System severed. 04683_ Acquired Imp. Fusion Compressor. 04687_ Com. Particle Reactor severed. 04687_ Adv. Targeting Computer destroyed. 04689_ C-57 Dissector destroyed. 04690_ Nova Cannon severed. 04691_ Imp. Signal Interpreter severed. 04691_ Acquired 39 matter. 04694_ Acquired Nova Cannon. 04694_ Exp. Signal Interpreter severed. 04695_ Critical hit (Burn: +37). 04697_ Nova Cannon severed. 04697_ Adv. Visual Processing Unit severed. 04698_ Acquired Nova Cannon. 04703_ Dropped Imp. Fusion Compressor. 04703_ Nova Cannon severed. 04705_ Knocked back. 04705_ Acquired 14 matter. [Achievement: This Is Interesting...] [Achievement: Just Browsing] Map ----- +----------------------------------------------------+ | ?????????????????????????????????????????????????? | | ?????????????????????????????????????????????????? | | ?????????????????????????????????????????????????? | | ?????????????????????????????????????????????????? | | ?????????????????????????????????????????????????? | | ?????????????????????????????????????????????????? | | ?????????????????????????????????????????????????? | | ?????????????????????????????????????????????????? | | ?????????????????????????????????????????????????? | | ?????????????????????????????????????????????????? | | ?????????????????????????????????????????????????? | | ?????????????????????????????????????????????????? | | ?????????????????w???????????????????????????????? | | ?????????????????????????????????????????????????? | | ?????????????????????????????????????????????????? | | ?????????????????????????????????????????????????? | | ?????????????????????????????????????????????????? | | ?????????????????????????????????????????????????? | | ?????????????????????????????????????????????????? | | ?????????????????????????????????????????????????? | | ?????????????????????##########??????????????????? | | ?????????????????????# #??????????????????? | | ?????????????????????# #??????????????????? | | ?????????????????????# #??????????????????? | | ?????????????????????# #??????????????????? | | ?????????????????????# cc@ #??????????????????? | | ?????????????????????# c]* #??????????????????? | | ?????????????????????#*g / #??????????????????? | | ?????????????????????#]==ggH #??????????????????? | | ?????????????????????# g g #??????????????????? | | ?????##############??#####g####??????????????????? | | ?????# ######Yg ### ###??????????????? | | ?????# + g * #?????????? | | ?????# ###### g #?????????? | | ?????# #????# g ####### #?????????? | | ?????+ #????## ####?????????#?????????? | | ?????# ####### #?????###??????????????? | | ?????# # #???? #??????????????? | | ?????# # #???? #??????????????? | | ?????# # #??? ""#??????????????? | | ?????# / #??? ""#??????????????? | | ?????# ] # #?? ""#??????????????? | | ?????# # #?? G#??????????????? | | ################### #? ""#??????????????? | | #?????# #? ""#??????????????? | | #?????# # ""#??????????????? | | #?????# # #??????????????? | | #?????# + #??????????????? | | #?????# # #??????????????? | | #?????# # #??????????????? | +----------------------------------------------------+ Best States ------------- Heat Dissipation 52 Energy Generation 23 Energy Capacity 500 Matter Stores 300 Matter Capacity 300 Sight Range 20 Terrain Scan Range 14 Terrain Scan Density 85 Cloak Strength 3 Additional Mass Support 9 EM Shielding 2 Armor Coverage 225 Resistance: KI 40 Resistance: TH 20 Resistance: EX 20 Resistance: EM 20 Resistance: I 20 Resistance: S 20 Resistance: P 20 Evasion (%) 73 Targeting Accuracy 8 Recoil Reduction 2 Particle Charging 15 Offensive Hacking 20 Item Schematics ----------------- Flight Unit | -8/Materials | Scanalyzed Adv. Weight Redist. System | -3/Research | Scanalyzed Reaction Control System | -2/Research | Scanalyzed Robot Schematics ------------------ None Fabricated ------------ Nothing Alien Tech Used ----------------- None Achievements -------------- Can't Catch Me Cya! Denied? GoHome() Hunted Just Browsing This Is Interesting... Challenges ------------ None Game ------ Seed LinearTransdimensionalFlamer Manual? 0 Play Time 02:26:46 Cumulative 11.3 hours Start 2023.08.05 @ 09:10:29 End 2023.08.06 @ 05:08:16 Sessions 2 Manual Loads 0 Difficulty Adventurer Special Mode None Game No. 7 Rogue 0 Adventurer 7 Explorer 0 Win Type - Total 0 Types 0/0/0/0/0/0/0/0/0 Lore% 28 Gallery% 27 Achievement% 18 Wizard Run 0 Options --------- ASCII 1 Keyboard 0 Movement Numpad Keybinds 0 Fullscreen 1 Font 18/Terminus Map View 76x50 Tactical HUD 1 Map Filters NONE Filters NONE Steam 1 RUN: 1ddd2f47-2fa2-42e3-993e-26a58fe5ca10